[Event "Live Chess"]
[Site "Chess.com"]
[Date "2024.06.02"]
[Round "-"]
[White "WorcesterYork"]
[Black "Isambard_Thomas"]
[Result "1-0"]
[WhiteElo "2468"]
[BlackElo "2176"]
[TimeControl "300"]
[EndTime "3:20:42 PDT"]
[Termination "WorcesterYork won by resignation"]

1. d4 {[%clk 0:04:55.8]} 1... Nf6 {[%clk 0:04:58]} 2. Bg5 {[%clk 0:04:54.8]}
2... c5 {[%clk 0:04:55.7]} 3. d5 {[%clk 0:04:53.1]} 3... d6 {[%clk 0:04:54.4]}
4. Bxf6 {[%clk 0:04:50.5]} 4... exf6 {[%clk 0:04:53.5]} 5. c4 {[%clk 0:04:49.4]}
5... Be7 {[%clk 0:04:52.8]} 6. Nc3 {[%clk 0:04:49]} 6... O-O {[%clk 0:04:52.2]}
7. e4 {[%clk 0:04:47.3]} 7... f5 {[%clk 0:04:51.1]} 8. Bd3 {[%clk 0:04:45.3]}
8... fxe4 {[%clk 0:04:47.1]} 9. Bxe4 {[%clk 0:04:44.6]} 9... Nd7 {[%clk
0:04:44.7]} 10. Nge2 {[%clk 0:04:43.7]} 10... Ne5 {[%clk 0:04:43.7]} 11. b3
{[%clk 0:04:42.3]} 11... Qa5 {[%clk 0:04:40.4]} 12. O-O {[%clk 0:04:41.1]} 12...
Bg4 {[%clk 0:04:39.1]} 13. f3 {[%clk 0:04:38.9]} 13... Bh5 {[%clk 0:04:38.2]}
14. Qc2 {[%clk 0:04:37.7]} 14... Bg6 {[%clk 0:04:36.6]} 15. f4 {[%clk
0:04:36.3]} 15... Ng4 {[%clk 0:04:20.5]} 16. f5 {[%clk 0:04:28.5]} 16... Ne3
{[%clk 0:04:16.9]} 17. Qd3 {[%clk 0:04:27.7]} 17... Nxf1 {[%clk 0:04:09]} 18.
fxg6 {[%clk 0:04:26.5]} 18... fxg6 {[%clk 0:03:47.8]} 19. Rxf1 {[%clk
0:04:25.2]} 19... Rxf1+ {[%clk 0:03:46.5]} 20. Kxf1 {[%clk 0:04:25.1]} 20...
Rf8+ {[%clk 0:03:44.7]} 21. Bf3 {[%clk 0:04:24.1]} 21... Bf6 {[%clk 0:03:40.7]}
22. g3 {[%clk 0:04:18.7]} 22... Qa3 {[%clk 0:03:25.8]} 23. Kg2 {[%clk
0:04:13.2]} 23... Qb2 {[%clk 0:03:19.3]} 24. Ne4 {[%clk 0:04:08.8]} 24... Be5
{[%clk 0:03:11.8]} 25. a4 {[%clk 0:04:06.9]} 25... Qa1 {[%clk 0:02:38.9]} 26. h4
{[%clk 0:04:05.2]} 26... Qa3 {[%clk 0:02:36.9]} 27. Ng5 {[%clk 0:04:00.4]} 27...
Qb4 {[%clk 0:02:25.5]} 28. h5 {[%clk 0:03:57.6]} 28... Rf6 {[%clk 0:02:17.3]}
29. Bg4 {[%clk 0:03:43.2]} 29... Qe1 {[%clk 0:02:04.8]} 30. Be6+ {[%clk
0:03:42.1]} 30... Kh8 {[%clk 0:01:41.4]} 31. Nf7+ {[%clk 0:03:40.9]} 31... Rxf7
{[%clk 0:01:34.4]} 32. Bxf7 {[%clk 0:03:40.8]} 32... gxh5 {[%clk 0:01:27.7]} 33.
Bxh5 {[%clk 0:03:39.4]} 33... g6 {[%clk 0:01:25.3]} 34. Bf3 {[%clk 0:03:38.3]}
34... Kg7 {[%clk 0:01:15.9]} 35. Qe4 {[%clk 0:03:37.3]} 35... Qd2 {[%clk
0:01:10.6]} 36. Qg4 {[%clk 0:03:30.6]} 36... h5 {[%clk 0:01:07.6]} 37. Qd7+
{[%clk 0:03:28.9]} 37... Kh6 {[%clk 0:01:06.8]} 38. Qxb7 {[%clk 0:03:25.7]}
38... Bd4 {[%clk 0:01:04.9]} 39. Qe7 {[%clk 0:03:20.5]} 39... Be5 {[%clk
0:01:01.6]} 40. Qf8+ {[%clk 0:03:16.8]} 40... Kg5 {[%clk 0:00:58.5]} 41. Qd8+
{[%clk 0:02:50.6]} 41... Kh6 {[%clk 0:00:56.3]} 42. Qe7 {[%clk 0:02:49.8]} 42...
Qb2 {[%clk 0:00:41.5]} 43. Qxa7 {[%clk 0:02:44.6]} 43... Qxb3 {[%clk 0:00:40.6]}
44. a5 {[%clk 0:02:39.3]} 44... Qxc4 {[%clk 0:00:37.6]} 45. a6 {[%clk
0:02:38.7]} 45... Qa4 {[%clk 0:00:30.8]} 46. Qb7 {[%clk 0:02:36.4]} 46... c4
{[%clk 0:00:24.1]} 47. a7 {[%clk 0:02:35.4]} 1-0

[Event "Live Chess"]
[Site "Chess.com"]
[Date "2024.06.02"]
[Round "-"]
[White "Bodhanas"]
[Black "WeakOldFinished"]
[Result "0-1"]
[WhiteElo "2237"]
[BlackElo "2184"]
[TimeControl "300"]
[EndTime "3:20:48 PDT"]
[Termination "WeakOldFinished won by resignation"]

1. d4 {[%clk 0:04:56.1]} 1... g6 {[%clk 0:04:58.6]} 2. Nf3 {[%clk 0:04:54.7]}
2... Bg7 {[%clk 0:04:57.9]} 3. c4 {[%clk 0:04:52.7]} 3... d6 {[%clk 0:04:56.8]}
4. Nc3 {[%clk 0:04:51]} 4... Nf6 {[%clk 0:04:55.9]} 5. e4 {[%clk 0:04:50.1]}
5... O-O {[%clk 0:04:55.2]} 6. Bd3 {[%clk 0:04:48.1]} 6... Bg4 {[%clk
0:04:46.3]} 7. O-O {[%clk 0:04:45.5]} 7... Nc6 {[%clk 0:04:45]} 8. Be3 {[%clk
0:04:44.4]} 8... e5 {[%clk 0:04:43.8]} 9. d5 {[%clk 0:04:39.4]} 9... Nd4 {[%clk
0:04:40.5]} 10. Bxd4 {[%clk 0:04:34.3]} 10... exd4 {[%clk 0:04:40.4]} 11. Nb5
{[%clk 0:04:33.6]} 11... Nd7 {[%clk 0:04:36.6]} 12. h3 {[%clk 0:04:27.3]} 12...
Bxf3 {[%clk 0:04:35.4]} 13. Qxf3 {[%clk 0:04:26.1]} 13... a6 {[%clk 0:04:34.7]}
14. Na3 {[%clk 0:04:25.2]} 14... Re8 {[%clk 0:04:31.5]} 15. Rad1 {[%clk
0:04:21.2]} 15... c5 {[%clk 0:04:29.3]} 16. dxc6 {[%clk 0:04:13.1]} 16... bxc6
{[%clk 0:04:29.2]} 17. Rfe1 {[%clk 0:04:11.8]} 17... Rb8 {[%clk 0:04:24.4]} 18.
b3 {[%clk 0:04:10.2]} 18... a5 {[%clk 0:04:22.6]} 19. Bb1 {[%clk 0:04:02.8]}
19... a4 {[%clk 0:04:20.3]} 20. Nc2 {[%clk 0:03:59.1]} 20... axb3 {[%clk
0:04:18.5]} 21. axb3 {[%clk 0:03:58.2]} 21... c5 {[%clk 0:04:15.7]} 22. b4
{[%clk 0:03:56.5]} 22... Ne5 {[%clk 0:04:13]} 23. Qb3 {[%clk 0:03:37.1]} 23...
d3 {[%clk 0:04:10.6]} 24. Ne3 {[%clk 0:03:35.3]} 24... Rxb4 {[%clk 0:04:08.9]}
25. Qc3 {[%clk 0:03:34.5]} 25... Nf3+ {[%clk 0:04:06.9]} 26. gxf3 {[%clk
0:03:33.3]} 26... Bxc3 {[%clk 0:04:05.7]} 27. Rf1 {[%clk 0:03:32.4]} 27... Bd4
{[%clk 0:03:59]} 28. Rxd3 {[%clk 0:03:30.8]} 28... Bxe3 {[%clk 0:03:58.1]} 29.
Rxe3 {[%clk 0:03:27.1]} 29... Rxc4 {[%clk 0:03:56]} 30. Rd1 {[%clk 0:03:25.8]}
30... Rd4 {[%clk 0:03:54.5]} 31. Red3 {[%clk 0:03:23.5]} 31... Rxd3 {[%clk
0:03:52.1]} 32. Bxd3 {[%clk 0:03:22.5]} 32... Qg5+ {[%clk 0:03:49.6]} 33. Kf1
{[%clk 0:03:20.9]} 33... Rb8 {[%clk 0:03:48.2]} 34. Bc4 {[%clk 0:03:16.9]} 34...
Qf4 {[%clk 0:03:42.5]} 35. Kg2 {[%clk 0:03:13.7]} 35... Rb2 {[%clk 0:03:40.6]}
36. Bd5 {[%clk 0:03:12.1]} 36... Kg7 {[%clk 0:03:33.7]} 37. Ra1 {[%clk
0:03:04.6]} 37... Qe3 {[%clk 0:03:27]} 38. Rf1 {[%clk 0:03:01.6]} 38... h5
{[%clk 0:03:18.4]} 39. h4 {[%clk 0:02:56]} 39... Rd2 {[%clk 0:03:16.9]} 40. Kg3
{[%clk 0:02:53.4]} 40... Qd4 {[%clk 0:03:13]} 41. f4 {[%clk 0:02:51.4]} 41...
Qc3+ {[%clk 0:03:10]} 42. Kg2 {[%clk 0:02:50.3]} 42... Rxd5 {[%clk 0:03:09]} 43.
exd5 {[%clk 0:02:49.3]} 43... Qd4 {[%clk 0:03:08.2]} 44. Kg3 {[%clk 0:02:48.4]}
44... Qxd5 {[%clk 0:03:07.2]} 45. Re1 {[%clk 0:02:46.7]} 45... c4 {[%clk
0:03:05.9]} 46. Re3 {[%clk 0:02:45.5]} 46... Qd4 {[%clk 0:03:04]} 47. Rf3 {[%clk
0:02:44.4]} 47... c3 {[%clk 0:03:02.9]} 48. Rxc3 {[%clk 0:02:43.6]} 48... Qxc3+
{[%clk 0:03:01.7]} 49. f3 {[%clk 0:02:43]} 49... Kf6 {[%clk 0:03:00.2]} 0-1

[Event "Live Chess"]
[Site "Chess.com"]
[Date "2024.06.02"]
[Round "-"]
[White "halfberg"]
[Black "StoreySniper"]
[Result "0-1"]
[WhiteElo "1898"]
[BlackElo "2511"]
[TimeControl "300"]
[EndTime "3:20:54 PDT"]
[Termination "StoreySniper won - game abandoned"]

1. e4 {[%clk 0:04:56.7]} 1... g6 {[%clk 0:04:57.5]} 2. d4 {[%clk 0:04:55]} 2...
Bg7 {[%clk 0:04:55.3]} 3. Nf3 {[%clk 0:04:53.1]} 3... c5 {[%clk 0:04:53.4]} 4.
c3 {[%clk 0:04:50.9]} 4... cxd4 {[%clk 0:04:48.3]} 5. cxd4 {[%clk 0:04:49.3]}
5... d5 {[%clk 0:04:47.9]} 6. e5 {[%clk 0:04:26.4]} 6... Nc6 {[%clk 0:04:45.9]}
7. Bb5 {[%clk 0:04:20.4]} 7... Bd7 {[%clk 0:04:43.6]} 8. Nc3 {[%clk 0:04:18.2]}
8... e6 {[%clk 0:04:39.3]} 9. O-O {[%clk 0:04:16.6]} 9... Nge7 {[%clk
0:04:38.1]} 10. Bg5 {[%clk 0:04:12.5]} 10... h6 {[%clk 0:04:35.7]} 11. Bxe7
{[%clk 0:03:55.9]} 11... Nxe7 {[%clk 0:04:33.2]} 12. Rc1 {[%clk 0:03:50.6]}
12... O-O {[%clk 0:04:31.2]} 13. Bd3 {[%clk 0:03:33.6]} 13... Qb6 {[%clk
0:04:25.3]} 14. Qd2 {[%clk 0:03:10.1]} 14... Rac8 {[%clk 0:04:18.9]} 0-1

[Event "Live Chess"]
[Site "Chess.com"]
[Date "2024.06.02"]
[Round "-"]
[White "FlyingChessKestrel13"]
[Black "resipsa6"]
[Result "1/2-1/2"]
[WhiteElo "2073"]
[BlackElo "2025"]
[TimeControl "300"]
[EndTime "3:20:58 PDT"]
[Termination "Game drawn by repetition"]

1. e4 {[%clk 0:04:54.6]} 1... e5 {[%clk 0:04:58.5]} 2. Nf3 {[%clk 0:04:52.6]}
2... Nf6 {[%clk 0:04:57.7]} 3. Nc3 {[%clk 0:04:50.8]} 3... Nc6 {[%clk
0:04:56.5]} 4. Bc4 {[%clk 0:04:49.7]} 4... Bc5 {[%clk 0:04:55]} 5. d3 {[%clk
0:04:47.7]} 5... h6 {[%clk 0:04:54.5]} 6. O-O {[%clk 0:04:46.3]} 6... d6 {[%clk
0:04:53.4]} 7. h3 {[%clk 0:04:44.8]} 7... O-O {[%clk 0:04:52.2]} 8. a4 {[%clk
0:04:43.5]} 8... a6 {[%clk 0:04:50.5]} 9. Nd5 {[%clk 0:04:42.4]} 9... Nxd5
{[%clk 0:04:49.1]} 10. Bxd5 {[%clk 0:04:41]} 10... Nd4 {[%clk 0:04:48]} 11. Nxd4
{[%clk 0:04:39]} 11... Bxd4 {[%clk 0:04:47.9]} 12. c3 {[%clk 0:04:37.8]} 12...
Ba7 {[%clk 0:04:46.7]} 13. Be3 {[%clk 0:04:36.3]} 13... Bxe3 {[%clk 0:04:45.5]}
14. fxe3 {[%clk 0:04:36.2]} 14... c6 {[%clk 0:04:44.9]} 15. Bb3 {[%clk 0:04:34]}
15... Be6 {[%clk 0:04:44.3]} 16. Bxe6 {[%clk 0:04:31.8]} 16... fxe6 {[%clk
0:04:43.4]} 17. Qg4 {[%clk 0:04:30.8]} 17... Qe7 {[%clk 0:04:40.3]} 18. Rf3
{[%clk 0:04:29.5]} 18... Rxf3 {[%clk 0:04:38.9]} 19. Qxf3 {[%clk 0:04:26.1]}
19... Rf8 {[%clk 0:04:38.1]} 20. Qe2 {[%clk 0:04:23.3]} 20... d5 {[%clk
0:04:34.5]} 21. exd5 {[%clk 0:04:21]} 21... exd5 {[%clk 0:04:33.8]} 22. Rf1
{[%clk 0:04:20.2]} 22... Rxf1+ {[%clk 0:04:32.3]} 23. Qxf1 {[%clk 0:04:17.2]}
23... Qg5 {[%clk 0:04:29.6]} 24. Qf3 {[%clk 0:04:15.1]} 24... b5 {[%clk
0:04:18.7]} 25. axb5 {[%clk 0:04:13.2]} 25... axb5 {[%clk 0:04:17.3]} 26. Kf2
{[%clk 0:04:12.5]} 26... Qh4+ {[%clk 0:04:13.6]} 27. Ke2 {[%clk 0:04:10.3]}
27... Qg5 {[%clk 0:04:04.9]} 28. g4 {[%clk 0:04:05.1]} 28... Qe7 {[%clk
0:03:50.3]} 29. d4 {[%clk 0:04:03.2]} 29... e4 {[%clk 0:03:47.6]} 30. Qg3 {[%clk
0:04:00.4]} 30... Qf7 {[%clk 0:03:36.9]} 31. Qf2 {[%clk 0:03:57.2]} 31... Qa7
{[%clk 0:03:26.6]} 32. Qf5 {[%clk 0:03:53.2]} 32... Qc7 {[%clk 0:03:21.7]} 33.
Qe6+ {[%clk 0:03:51.1]} 33... Kh7 {[%clk 0:03:18.8]} 34. Qf5+ {[%clk 0:03:49.7]}
34... Kg8 {[%clk 0:03:17.8]} 35. Qe6+ {[%clk 0:03:47.4]} 35... Kh7 {[%clk
0:03:16.9]} 36. Qf5+ {[%clk 0:03:46.5]} 36... Kg8 {[%clk 0:03:16.2]} 1/2-1/2

[Event "Live Chess"]
[Site "Chess.com"]
[Date "2024.06.02"]
[Round "-"]
[White "TC2304"]
[Black "GerardATHart"]
[Result "1-0"]
[WhiteElo "2336"]
[BlackElo "1368"]
[TimeControl "300"]
[EndTime "3:21:04 PDT"]
[Termination "TC2304 won by resignation"]

1. a4 {[%clk 0:04:51.1]} 1... d5 {[%clk 0:04:57.6]} 2. a5 {[%clk 0:04:50.5]}
2... e5 {[%clk 0:04:55.8]} 3. e3 {[%clk 0:04:50.2]} 3... f5 {[%clk 0:04:54]} 4.
d4 {[%clk 0:04:47.3]} 4... e4 {[%clk 0:04:52.3]} 5. c4 {[%clk 0:04:46.5]} 5...
Nf6 {[%clk 0:04:50.1]} 6. Nc3 {[%clk 0:04:45.6]} 6... Bb4 {[%clk 0:04:47.9]} 7.
cxd5 {[%clk 0:04:37.2]} 7... Nxd5 {[%clk 0:04:44.2]} 8. Qb3 {[%clk 0:04:27.5]}
8... Nc6 {[%clk 0:04:35.3]} 9. Bb5 {[%clk 0:04:21.7]} 9... O-O {[%clk
0:04:13.6]} 10. Bd2 {[%clk 0:04:13.8]} 10... Nxa5 {[%clk 0:04:03.3]} 11. Qxd5+
{[%clk 0:04:11.1]} 11... Qxd5 {[%clk 0:03:55.2]} 12. Nxd5 {[%clk 0:04:11]} 12...
Bxd2+ {[%clk 0:03:48.8]} 13. Kxd2 {[%clk 0:04:10.9]} 13... Nb3+ {[%clk
0:03:45.3]} 14. Kc3 {[%clk 0:04:08.1]} 14... Nxa1 {[%clk 0:03:43.7]} 15. Ne7+
{[%clk 0:03:55.4]} 15... Kh8 {[%clk 0:03:41.1]} 16. Nxc8 {[%clk 0:03:52.6]}
16... Rfxc8 {[%clk 0:03:33.4]} 17. Ne2 {[%clk 0:03:44.8]} 17... c5 {[%clk
0:03:29.8]} 18. d5 {[%clk 0:03:42.6]} 18... a6 {[%clk 0:03:27.2]} 19. Bc4 {[%clk
0:03:41.6]} 19... b5 {[%clk 0:03:23.6]} 20. Ba2 {[%clk 0:03:41.1]} 20... b4+
{[%clk 0:03:18.1]} 21. Kc4 {[%clk 0:03:29.6]} 21... Nc2 {[%clk 0:03:08.5]} 22.
Rc1 {[%clk 0:03:22.8]} 22... Rab8 {[%clk 0:03:00.1]} 23. Rxc2 {[%clk 0:03:19]}
23... b3 {[%clk 0:02:58.7]} 24. Bxb3 {[%clk 0:03:17.5]} 24... Rb4+ {[%clk
0:02:52.1]} 25. Kc3 {[%clk 0:03:16.8]} 25... Rcb8 {[%clk 0:02:48.2]} 26. Bc4
{[%clk 0:03:14.9]} 26... a5 {[%clk 0:02:46]} 27. d6 {[%clk 0:03:04.1]} 27... g6
{[%clk 0:02:41.4]} 28. Rd2 {[%clk 0:02:58.4]} 28... Kg7 {[%clk 0:02:37.6]} 29.
Nf4 {[%clk 0:02:54.7]} 29... Kf6 {[%clk 0:02:35]} 30. d7 {[%clk 0:02:54]} 30...
Rd8 {[%clk 0:02:27.1]} 31. Nd5+ {[%clk 0:02:46.8]} 31... Ke6 {[%clk 0:02:22.2]}
32. Nxb4+ {[%clk 0:02:44.2]} 32... Ke7 {[%clk 0:02:17.1]} 33. Nc6+ {[%clk
0:02:43.5]} 1-0

[Event "Live Chess"]
[Site "Chess.com"]
[Date "2024.06.02"]
[Round "-"]
[White "ACM42"]
[Black "McFim"]
[Result "1-0"]
[WhiteElo "2178"]
[BlackElo "1700"]
[TimeControl "300"]
[EndTime "3:21:14 PDT"]
[Termination "ACM42 won on time"]

1. e4 {[%clk 0:04:58.4]} 1... c6 {[%clk 0:04:58.6]} 2. d4 {[%clk 0:04:57.2]}
2... d5 {[%clk 0:04:58.5]} 3. e5 {[%clk 0:04:56.3]} 3... Bf5 {[%clk 0:04:57.2]}
4. Nc3 {[%clk 0:04:55.4]} 4... e6 {[%clk 0:04:56.2]} 5. g4 {[%clk 0:04:50.8]}
5... Bg6 {[%clk 0:04:54.4]} 6. Nge2 {[%clk 0:04:49.1]} 6... h6 {[%clk
0:04:50.8]} 7. h4 {[%clk 0:04:46.2]} 7... a6 {[%clk 0:04:48.9]} 8. Be3 {[%clk
0:04:43.8]} 8... Nd7 {[%clk 0:04:46.3]} 9. h5 {[%clk 0:04:31.3]} 9... Bh7 {[%clk
0:04:44.1]} 10. f4 {[%clk 0:04:30.3]} 10... c5 {[%clk 0:04:39.6]} 11. a3 {[%clk
0:04:28.7]} 11... cxd4 {[%clk 0:04:32.5]} 12. Nxd4 {[%clk 0:04:26.2]} 12... Ne7
{[%clk 0:04:29.6]} 13. Bd3 {[%clk 0:04:21.2]} 13... Bxd3 {[%clk 0:04:27.6]} 14.
cxd3 {[%clk 0:04:15.4]} 14... Nc6 {[%clk 0:04:24.4]} 15. Nf3 {[%clk 0:04:11.7]}
15... Be7 {[%clk 0:03:44]} 16. b4 {[%clk 0:04:07.9]} 16... Nb6 {[%clk
0:03:28.9]} 17. Ne2 {[%clk 0:03:59.9]} 17... Na7 {[%clk 0:03:13.5]} 18. Ned4
{[%clk 0:03:51.2]} 18... Nb5 {[%clk 0:03:09.2]} 19. f5 {[%clk 0:03:25.2]} 19...
Nxd4 {[%clk 0:02:38.8]} 20. Bxd4 {[%clk 0:03:11.9]} 20... Nd7 {[%clk 0:02:20.2]}
21. Qd2 {[%clk 0:03:01.2]} 21... Rc8 {[%clk 0:02:08.4]} 22. Rc1 {[%clk
0:02:47.4]} 22... Nb8 {[%clk 0:02:05]} 23. O-O {[%clk 0:02:44.5]} 23... Nc6
{[%clk 0:02:01.1]} 24. Bb2 {[%clk 0:02:33]} 24... Bg5 {[%clk 0:01:37.5]} 25.
Nxg5 {[%clk 0:02:29.3]} 25... Qxg5 {[%clk 0:01:35.7]} 26. Qxg5 {[%clk
0:02:16.3]} 26... hxg5 {[%clk 0:01:35.6]} 27. a4 {[%clk 0:01:46.5]} 27... Ke7
{[%clk 0:01:27.7]} 28. b5 {[%clk 0:01:44.9]} 28... axb5 {[%clk 0:01:14.9]} 29.
axb5 {[%clk 0:01:44.8]} 29... Na7 {[%clk 0:01:10.8]} 30. Ba3+ {[%clk 0:01:31.2]}
30... Kd7 {[%clk 0:01:08.2]} 31. b6 {[%clk 0:01:29.4]} 31... Rxc1 {[%clk
0:00:52.4]} 32. Rxc1 {[%clk 0:01:26]} 32... Nc6 {[%clk 0:00:51.2]} 33. f6 {[%clk
0:01:04.7]} 33... gxf6 {[%clk 0:00:47.2]} 34. exf6 {[%clk 0:01:03]} 34... Ra8
{[%clk 0:00:40.1]} 35. Be7 {[%clk 0:00:46.8]} 35... Ra4 {[%clk 0:00:32.9]} 36.
Kf2 {[%clk 0:00:18.5]} 36... Rxg4 {[%clk 0:00:31.9]} 37. Rh1 {[%clk 0:00:17.2]}
37... Nxe7 {[%clk 0:00:18]} 38. fxe7 {[%clk 0:00:16]} 38... Kxe7 {[%clk
0:00:17.9]} 39. h6 {[%clk 0:00:15.2]} 39... Kf8 {[%clk 0:00:13]} 40. h7 {[%clk
0:00:14.5]} 40... Rf4+ {[%clk 0:00:09.4]} 41. Ke3 {[%clk 0:00:12.6]} 41... d4+
{[%clk 0:00:07.9]} 42. Ke2 {[%clk 0:00:11.3]} 42... Rh4 {[%clk 0:00:05.8]} 43.
Rxh4 {[%clk 0:00:10.7]} 43... gxh4 {[%clk 0:00:03.5]} 44. h8=Q+ {[%clk
0:00:10.6]} 44... Ke7 {[%clk 0:00:02.7]} 45. Qxh4+ {[%clk 0:00:10.5]} 45... f6
{[%clk 0:00:01.6]} 46. Qxd4 {[%clk 0:00:10.4]} 46... e5 {[%clk 0:00:00.4]} 47.
Qb4+ {[%clk 0:00:10.3]} 1-0

[Event "Live Chess"]
[Site "Chess.com"]
[Date "2024.06.02"]
[Round "-"]
[White "f4nomore"]
[Black "AlanBstard10"]
[Result "1-0"]
[WhiteElo "1247"]
[BlackElo "1225"]
[TimeControl "300"]
[EndTime "3:21:31 PDT"]
[Termination "f4nomore won by resignation"]

1. c4 {[%clk 0:04:55.4]} 1... e5 {[%clk 0:04:57.8]} 2. Nc3 {[%clk 0:04:54.3]}
2... Bb4 {[%clk 0:04:55.8]} 3. d3 {[%clk 0:04:51]} 3... Bxc3+ {[%clk 0:04:54.4]}
4. bxc3 {[%clk 0:04:49.4]} 4... d6 {[%clk 0:04:52.9]} 5. Nf3 {[%clk 0:04:46.9]}
5... Nf6 {[%clk 0:04:52.4]} 6. e3 {[%clk 0:04:42.8]} 6... O-O {[%clk 0:04:51.9]}
7. Be2 {[%clk 0:04:41.3]} 7... Bg4 {[%clk 0:04:42.1]} 8. Kf1 {[%clk 0:04:40.1]}
8... Nc6 {[%clk 0:04:34.9]} 9. Kg1 {[%clk 0:04:40]} 9... h5 {[%clk 0:04:30.7]}
10. h3 {[%clk 0:04:37]} 10... Bxf3 {[%clk 0:04:27.4]} 11. Bxf3 {[%clk
0:04:35.3]} 11... Rb8 {[%clk 0:04:19]} 12. Kh2 {[%clk 0:04:32.7]} 12... Ne7
{[%clk 0:04:17]} 13. Rf1 {[%clk 0:04:27.7]} 13... Nf5 {[%clk 0:04:15.5]} 14. Kg1
{[%clk 0:04:25.5]} 14... Nh4 {[%clk 0:04:13.4]} 15. Be2 {[%clk 0:04:21.6]} 15...
g6 {[%clk 0:04:11.7]} 16. e4 {[%clk 0:04:15.5]} 16... Nh7 {[%clk 0:03:57.1]} 17.
Bh6 {[%clk 0:04:10.5]} 17... Re8 {[%clk 0:03:53.9]} 18. f4 {[%clk 0:03:50.4]}
18... exf4 {[%clk 0:03:52.5]} 19. Bxf4 {[%clk 0:03:47.1]} 19... g5 {[%clk
0:03:47.5]} 20. Bg3 {[%clk 0:03:45.5]} 20... Ng6 {[%clk 0:03:45.1]} 21. Bxh5
{[%clk 0:03:42.8]} 21... Nf6 {[%clk 0:03:35.4]} 22. Bf3 {[%clk 0:03:33.9]} 22...
Kg7 {[%clk 0:03:29.4]} 23. Qd2 {[%clk 0:03:32]} 23... Nd7 {[%clk 0:03:25.2]} 24.
d4 {[%clk 0:03:25]} 24... c6 {[%clk 0:03:22.6]} 25. e5 {[%clk 0:03:22.2]} 25...
dxe5 {[%clk 0:03:21.5]} 26. dxe5 {[%clk 0:03:18.4]} 26... Ndxe5 {[%clk
0:03:20.6]} 27. Qxd8 {[%clk 0:03:15.2]} 27... Rbxd8 {[%clk 0:03:19.7]} 28. Bh5
{[%clk 0:03:06.6]} 28... Kh6 {[%clk 0:03:10.9]} 29. Bf3 {[%clk 0:03:00.9]} 29...
Nxf3+ {[%clk 0:03:09.1]} 30. Rxf3 {[%clk 0:02:58.8]} 30... Kg7 {[%clk 0:02:55]}
31. Raf1 {[%clk 0:02:54.6]} 31... Re7 {[%clk 0:02:44.7]} 32. c5 {[%clk
0:02:49.1]} 32... Rd2 {[%clk 0:02:41.1]} 33. Bd6 {[%clk 0:02:44]} 33... Rd7
{[%clk 0:02:29.6]} 34. a4 {[%clk 0:02:37]} 34... b6 {[%clk 0:02:27.3]} 35. Rf5
{[%clk 0:02:32.6]} 35... bxc5 {[%clk 0:02:24.8]} 36. Bxc5 {[%clk 0:02:30.7]}
36... Rd1 {[%clk 0:02:21.6]} 37. Bd4+ {[%clk 0:02:28.7]} 37... f6 {[%clk
0:02:13.1]} 38. Rxd1 {[%clk 0:02:26.1]} 38... Nf4 {[%clk 0:02:10.2]} 39. Bxf6+
{[%clk 0:02:22.5]} 39... Kg6 {[%clk 0:02:08.2]} 40. Rxd7 {[%clk 0:02:17.3]}
40... Kxf5 {[%clk 0:02:07.4]} 41. Bd4 {[%clk 0:02:13.4]} 41... Ne2+ {[%clk
0:02:05.5]} 42. Kh2 {[%clk 0:02:10]} 42... Ke4 {[%clk 0:02:04.8]} 43. Rxa7
{[%clk 0:02:00.5]} 43... Kd5 {[%clk 0:02:01.9]} 44. Ra5+ {[%clk 0:01:55.6]}
44... Kc4 {[%clk 0:01:58.4]} 45. Rxg5 {[%clk 0:01:51.7]} 45... Nxc3 {[%clk
0:01:57.1]} 46. a5 {[%clk 0:01:49.4]} 46... Nb5 {[%clk 0:01:54.5]} 47. Bf2
{[%clk 0:01:40.9]} 47... Na7 {[%clk 0:01:48.6]} 48. Bxa7 {[%clk 0:01:37.1]}
48... c5 {[%clk 0:01:47.5]} 49. Rxc5+ {[%clk 0:01:33.6]} 49... Kb4 {[%clk
0:01:45.3]} 1-0

[Event "Live Chess"]
[Site "Chess.com"]
[Date "2024.06.02"]
[Round "-"]
[White "vincents82"]
[Black "Dhaydon19"]
[Result "0-1"]
[WhiteElo "2009"]
[BlackElo "2628"]
[TimeControl "300"]
[EndTime "3:21:33 PDT"]
[Termination "Dhaydon19 won by resignation"]

1. e4 {[%clk 0:04:56.2]} 1... e6 {[%clk 0:04:58.9]} 2. d4 {[%clk 0:04:51.5]}
2... d5 {[%clk 0:04:58.1]} 3. Nd2 {[%clk 0:04:50.8]} 3... dxe4 {[%clk
0:04:56.7]} 4. Nxe4 {[%clk 0:04:50]} 4... Nd7 {[%clk 0:04:56.4]} 5. Nf3 {[%clk
0:04:49.1]} 5... Ngf6 {[%clk 0:04:56.1]} 6. Nxf6+ {[%clk 0:04:48.4]} 6... Nxf6
{[%clk 0:04:55.8]} 7. Bd3 {[%clk 0:04:47.8]} 7... c5 {[%clk 0:04:54.9]} 8. dxc5
{[%clk 0:04:47]} 8... Qa5+ {[%clk 0:04:53.8]} 9. c3 {[%clk 0:04:45]} 9... Qxc5
{[%clk 0:04:53.3]} 10. O-O {[%clk 0:04:43.3]} 10... Bd7 {[%clk 0:04:52.5]} 11.
Bg5 {[%clk 0:04:41.6]} 11... Bc6 {[%clk 0:04:49.3]} 12. Qe2 {[%clk 0:04:40]}
12... Bd6 {[%clk 0:04:44.7]} 13. Be3 {[%clk 0:04:33.2]} 13... Qh5 {[%clk
0:04:41.6]} 14. h3 {[%clk 0:04:32.4]} 14... Qa5 {[%clk 0:04:31.3]} 15. Nd4
{[%clk 0:04:22.5]} 15... O-O {[%clk 0:04:26.4]} 16. Nxc6 {[%clk 0:04:20.5]}
16... bxc6 {[%clk 0:04:25.2]} 17. Bd4 {[%clk 0:04:19.1]} 17... Nd5 {[%clk
0:04:13.7]} 18. Qh5 {[%clk 0:04:05.9]} 18... f5 {[%clk 0:04:09.2]} 19. Rfe1
{[%clk 0:03:39.3]} 19... Nf4 {[%clk 0:04:06.7]} 20. Qg5 {[%clk 0:03:35.5]} 20...
Rf7 {[%clk 0:03:59.9]} 21. Bc4 {[%clk 0:03:32.9]} 21... h6 {[%clk 0:03:53.7]}
22. Qh4 {[%clk 0:03:22.8]} 22... Re8 {[%clk 0:03:51.3]} 23. g3 {[%clk
0:03:13.4]} 23... Nd5 {[%clk 0:03:49.4]} 24. Qh5 {[%clk 0:02:47.5]} 24... Qc7
{[%clk 0:03:45.6]} 25. Bxd5 {[%clk 0:02:39.9]} 25... cxd5 {[%clk 0:03:41.9]} 26.
f4 {[%clk 0:02:39]} 26... Kh7 {[%clk 0:03:35.7]} 27. Qf3 {[%clk 0:02:34.5]}
27... g6 {[%clk 0:03:34]} 28. Kh2 {[%clk 0:02:32]} 28... Rfe7 {[%clk 0:03:29.7]}
29. Re2 {[%clk 0:02:29.9]} 29... e5 {[%clk 0:03:25.6]} 30. fxe5 {[%clk
0:02:28.3]} 30... Bxe5 {[%clk 0:03:25.1]} 31. Bxe5 {[%clk 0:02:26.2]} 31... Rxe5
{[%clk 0:03:24.2]} 32. Rae1 {[%clk 0:02:21.5]} 32... Re4 {[%clk 0:03:23]} 33.
Qd3 {[%clk 0:02:13.4]} 33... Qe5 {[%clk 0:03:20.4]} 34. Rxe4 {[%clk 0:02:09.8]}
34... dxe4 {[%clk 0:03:19.5]} 35. Qa6 {[%clk 0:01:50.7]} 35... Re7 {[%clk
0:03:12.8]} 36. Rd1 {[%clk 0:01:45.9]} 36... e3 {[%clk 0:03:10.1]} 37. Rd6
{[%clk 0:01:42.6]} 37... e2 {[%clk 0:02:58.2]} 38. Rxg6 {[%clk 0:01:41.5]} 38...
Qe3 {[%clk 0:02:56.8]} 39. Qc4 {[%clk 0:00:45.9]} 39... Kxg6 {[%clk 0:02:52.9]}
0-1